bitfinex/quotes_ETHUSD_20260213
["timestamp","ask_amount","ask_price","bid_price","bid_amount"]
[1771007831805,1.21363019,2063.4,2062.6,1.21201591]
[1771007832012,1.03977859,2063.3,2062.6,1.21301591]
[1771007832188,0.002,2062.7,2062.6,1.21301591]
[1771007832390,1.21363019,2063.4,2062.6,1.21301591]
[1771007832589,1.03977088,2063.3,2062.6,1.21301591]
[1771007832780,1.03977088,2063.2,2062.6,1.21301591]
[1771007832978,1.03977088,2063.1,2062.6,1.21301591]
[1771007833213,0.002,2063.4,2062.6,1.21301591]
[1771007833412,1.03982094,2063.3,2062.6,1.21301591]
[1771007833609,1.03982094,2063.2,2062.6,1.21301591]
[1771007833813,1.03982094,2063.1,2062.6,1.21301591]
[1771007834013,0.002,2063.4,2062.6,1.21301591]
[1771007834014,0.002,2063.4,2062.7,0.48821489]
[1771007834220,1.03977688,2063.3,2062.7,0.48821489]
[1771007834513,1.03977688,2063.2,2062.7,0.48821489]
[1771007834714,0.002,2063.4,2062.7,0.48821489]
[1771007834907,1.03990112,2063.3,2062.7,0.48821489]
[1771007835092,0.002,2063.4,2062.7,0.48821489]
[1771007835434,0.002,2063.4,2062.9,0.48821489]
[1771007835709,2.08426251,2064.0,2063.1,0.48821489]
[1771007836113,4.84442977,2064.3,2063.1,0.48821489]
[1771007836315,1.21109444,2064.3,2063.1,0.48821489]
[1771007837623,1.21109444,2064.3,2063.3,0.48821489]
[1771007837926,1.21109444,2064.3,2063.4,1.242]
[1771007839415,1.21109444,2064.3,2063.5,0.48821489]
[1771007839630,1.21109444,2064.3,2063.6,1.21147509]
[1771007840124,4.84406789,2064.4,2063.6,1.21147509]
[1771007840125,1.31343941,2064.4,2063.6,1.21147509]
[1771007841498,1.31343941,2064.4,2063.5,1.2114874]
[1771007841701,1.21103941,2064.4,2063.6,0.48821489]
[1771007842431,5.9349648,2064.5,2063.6,0.48821489]
[1771007842432,2.30195838,2064.5,2063.6,0.48821489]
[1771007842797,1.21092644,2064.6,2063.6,0.48821489]
[1771007843196,0.873,2064.7,2063.6,0.48821489]
[1771007843506,2.30274293,2064.9,2063.7,1.21141638]
[1771007843706,2.30272304,2064.9,2063.8,0.48821489]
[1771007843921,2.30272304,2064.9,2064.0,0.48821489]
[1771007844527,2.77665548,2064.9,2063.9,1.24]
[1771007844707,2.77665548,2064.9,2063.9,1.72821489]
[1771007845095,2.30272304,2064.9,2063.9,1.72821489]
[1771007845322,2.30272304,2064.9,2064.0,0.48821489]
[1771007845718,2.30272304,2064.9,2064.1,1.21118162]
[1771007845917,1.092,2064.9,2064.1,1.69939651]
[1771007846123,2.30271596,2064.9,2064.1,1.21118162]
[1771007846301,0.002,2064.4,2064.0,1.21119619]
[1771007846643,0.002,2064.4,2063.9,6.5733242]
[1771007846644,0.002,2064.4,2063.9,1.72821489]
[1771007846801,0.002,2064.4,2063.9,1.24]
[1771007847004,0.002,2064.4,2063.9,1.21128571]
[1771007847401,0.002,2064.4,2063.8,1.21131604]
[1771007848331,0.002,2064.4,2063.6,0.001]
[1771007848626,1.03839674,2064.3,2063.6,2.45147403]
[1771007848802,0.002,2064.4,2063.6,2.45147403]
[1771007849005,1.03839691,2064.3,2063.7,0.48821489]
[1771007849204,0.002,2064.4,2063.7,0.48821489]
[1771007849401,6.392,2068.5,2063.7,0.48821489]
[1771007849402,4.94465673,2065.2,2063.7,0.48821489]
[1771007849628,1.03812064,2065.1,2063.7,0.48821489]
[1771007849826,2.24877439,2065.0,2063.9,0.48821489]
[1771007850135,1.03812064,2064.9,2063.9,0.48821489]
[1771007850308,1.03812064,2064.8,2063.9,0.48821489]
[1771007850509,1.21063701,2065.1,2063.9,0.48821489]
[1771007850713,1.0376359,2065.0,2063.9,0.48821489]
[1771007850915,1.0376359,2064.9,2063.9,0.48821489]
[1771007851116,1.21063701,2065.1,2063.9,0.48821489]
[1771007851316,1.03732595,2065.0,2063.9,0.48821489]
[1771007851609,1.21063701,2065.1,2063.9,0.48821489]
[1771007851610,1.03741227,2064.9,2063.9,0.48821489]
[1771007851811,1.03748831,2064.8,2064.1,0.48826199]
[1771007852026,0.1024,2065.1,2064.1,0.48826199]
[1771007852228,1.03752745,2065.0,2064.1,0.48826199]
[1771007852436,1.03752745,2064.9,2064.1,0.48826199]
[1771007852608,1.03752745,2064.8,2064.1,0.48826199]
[1771007852805,0.1024,2065.1,2064.1,0.48826199]
[1771007853009,1.03751038,2065.0,2064.1,0.48826199]
[1771007853310,0.1024,2065.1,2064.0,1.21124031]
[1771007853311,1.03751038,2064.9,2064.0,1.21124031]
[1771007853517,1.03751038,2064.8,2064.0,1.21124031]
[1771007853714,1.2108883,2064.6,2063.8,1.69956098]
[1771007854032,5.8808695,2064.7,2063.8,2.93756098]
[1771007854033,1.2108569,2064.7,2063.8,2.93756098]
[1771007854208,1.03791785,2064.6,2063.9,0.48826199]
[1771007854410,4.84308407,2065.0,2063.9,0.48826199]
[1771007854411,1.21065537,2065.0,2063.9,0.48826199]
[1771007854605,1.03783095,2064.9,2063.9,0.48826199]
[1771007854821,1.21052561,2065.3,2063.9,0.48826199]
[1771007855140,1.03768202,2065.2,2063.9,0.48826199]
[1771007855342,1.03768202,2065.1,2063.9,0.48826199]
[1771007855638,1.21052561,2065.3,2064.0,0.48826199]
[1771007855827,1.21059512,2065.1,2064.2,0.48826199]
[1771007856031,1.03782305,2065.0,2064.3,1.238]
[1771007856228,1.03782305,2065.0,2064.2,1.72626199]
[1771007856626,1.03782305,2065.0,2064.0,1.21119638]
[1771007856627,1.5021933,2065.0,2064.0,1.21119638]
[1771007856827,1.03782305,2064.9,2063.9,5.51951687]
[1771007857039,1.5021933,2064.9,2063.9,6.75751687]
[1771007857239,1.03782305,2064.8,2064.0,0.49762309]
[1771007857441,1.03782305,2064.7,2064.0,0.49762309]
[1771007857614,1.088,2065.0,2064.0,0.49762309]
[1771007857810,1.03862102,2064.9,2064.1,1.21118162]
[1771007858012,1.03862102,2064.8,2064.1,1.21118162]
[1771007858212,1.03862102,2064.7,2064.1,1.70880471]
[1771007858546,1.03862102,2064.6,2063.9,1.238]
[1771007858746,1.03862102,2064.5,2063.9,1.238]
[1771007859041,1.03862102,2064.4,2063.6,2.08544254]
[1771007859246,1.03862102,2064.3,2063.6,2.08544254]
[1771007859562,1.03862102,2064.2,2063.6,0.874]
[1771007859724,1.03862102,2064.1,2063.6,0.874]
[1771007859918,1.21106428,2064.3,2063.6,0.874]
[1771007860123,1.0397191,2064.2,2063.6,2.08547465]
[1771007860319,1.0397191,2064.1,2063.6,2.08547465]
[1771007860517,1.0397191,2064.0,2063.6,0.874]
[1771007860827,1.04021418,2063.9,2063.6,2.08547143]
[1771007861031,1.087,2064.4,2063.6,2.08547143]
[1771007861226,1.04015837,2064.3,2063.6,2.58309452]
[1771007861551,1.04015837,2064.2,2063.6,2.58309452]
[1771007861761,0.002,2064.6,2063.7,0.49762309]
[1771007861968,2.25150413,2064.5,2063.8,1.21135768]
[1771007862259,1.04054234,2064.4,2063.8,1.21135768]
[1771007862562,1.04054234,2064.3,2063.8,1.21135768]
[1771007862733,1.04054234,2064.2,2063.8,1.21135768]
[1771007862926,1.21095174,2064.5,2063.7,1.70900172]
[1771007863156,1.04108684,2064.4,2063.6,1.21242831]
[1771007863344,1.04108684,2064.3,2063.6,1.21242831]
[1771007863547,1.04108684,2064.2,2063.6,1.21242831]
[1771007863751,1.04108684,2064.1,2063.6,0.001]
[1771007863958,1.04108684,2064.0,2063.6,0.001]
[1771007864253,1.04108684,2063.9,2063.6,0.001]
[1771007864442,1.21108015,2064.3,2063.6,0.001]
[1771007864758,1.04252794,2064.2,2063.6,0.001]
[1771007865061,1.21108015,2064.3,2063.6,0.001]
[1771007865062,1.04252794,2064.1,2063.6,0.001]
[1771007865253,1.04252794,2064.0,2063.6,0.001]
[1771007865460,1.04252794,2063.9,2063.6,0.001]
[1771007865661,1.04252794,2063.8,2063.6,0.001]
[1771007865841,1.21108015,2064.3,2063.6,0.001]
[1771007866046,2.25429101,2064.2,2063.6,0.001]
[1771007866245,1.04316603,2064.1,2063.6,0.001]
[1771007866445,1.04316603,2064.0,2063.6,0.001]
[1771007866645,1.04316603,2063.9,2063.6,0.001]
[1771007866863,1.04316603,2063.8,2063.6,0.001]
[1771007867046,1.04336586,2063.7,2063.6,0.001]
[1771007869964,1.04336586,2063.7,2063.4,0.001]
[1771007870269,1.04336586,2063.6,2063.4,0.001]
[1771007870475,1.21127804,2064.0,2063.4,0.001]
[1771007870664,6.40422649,2064.3,2063.4,0.001]
[1771007870665,4.84452078,2064.2,2063.4,0.001]
[1771007871345,4.84452078,2064.2,2063.8,0.001]
[1771007871540,0.47393244,2063.9,2063.4,0.001]
[1771007872586,1.087,2063.8,2063.0,1.70943817]
[1771007872754,1.21141638,2063.7,2063.0,1.70943817]
[1771007872935,1.087,2063.8,2063.1,0.49762309]
[1771007874441,1.21124674,2064.0,2063.1,0.49762309]
[1771007874647,8.67816245,2064.2,2063.2,1.21170996]
[1771007874848,0.873,2064.3,2063.3,0.49762309]
[1771007875254,5.9326402,2064.6,2063.3,0.49762309]
[1771007875255,2.2999224,2064.6,2063.3,0.49762309]
[1771007875765,1.089,2064.6,2063.3,0.49762309]
[1771007875966,2.29989526,2064.6,2063.3,0.49762309]
[1771007876163,1.089,2064.6,2063.3,0.49762309]
[1771007876368,2.29989253,2064.6,2063.3,0.49762309]
[1771007876662,1.089,2064.6,2063.3,0.49762309]
[1771007876859,1.089,2064.6,2063.4,1.21159251]
[1771007877059,1.089,2064.6,2063.6,0.49762309]
[1771007879043,1.089,2064.6,2063.8,0.49762309]
[1771007879247,0.002,2064.6,2063.8,0.49762309]
[1771007879589,1.2128998,2064.6,2063.8,0.49762309]
[1771007880278,1.68583224,2064.6,2063.6,1.21142947]
[1771007880648,0.46021661,2064.5,2063.5,2.94812367]
[1771007880953,1.21106428,2064.3,2063.5,2.45050058]
[1771007881382,1.67128089,2064.3,2063.5,1.239]
[1771007881559,0.46021661,2064.2,2063.2,1.21167843]
[1771007881753,1.21106428,2064.3,2063.3,0.47376823]
[1771007882356,0.46021661,2064.2,2063.1,1.21175253]
[1771007882556,0.56261661,2064.1,2063.0,1.238]
[1771007882765,1.54521661,2064.0,2063.0,2.44982238]
[1771007883157,1.21129899,2063.9,2063.0,1.238]
[1771007883481,1.21129899,2063.9,2063.0,2.44980222]
[1771007883863,1.21129899,2063.9,2063.0,1.238]
[1771007884182,1.6715156,2063.9,2063.3,0.001]
[1771007884485,0.46021661,2063.8,2063.3,0.001]
[1771007884650,0.46021661,2063.8,2062.7,0.47476823]
[1771007884855,0.46021661,2063.8,2062.7,1.68675828]
[1771007885162,1.21141638,2063.7,2062.7,1.21299005]
[1771007885361,0.56261661,2063.6,2062.7,0.001]
[1771007885579,1.54621661,2063.5,2062.7,0.001]
[1771007885752,0.46021661,2063.4,2062.7,0.001]
[1771007886452,0.56261661,2063.3,2062.7,0.001]
[1771007886684,0.56261661,2063.3,2061.8,1.68630096]
[1771007886685,0.46021661,2062.9,2061.8,1.68630096]
[1771007886884,1.086,2062.8,2061.8,1.68630096]
[1771007887181,1.086,2062.8,2061.7,0.001]
[1771007887182,1.67222029,2062.7,2061.7,0.001]
[1771007887353,1.67222029,2062.7,2061.7,1.21358543]
[1771007888782,0.56261661,2062.6,2061.7,0.001]
[1771007889077,0.1024,2062.4,2061.7,0.001]
[1771007889279,1.086,2062.3,2061.7,0.001]
[1771007889583,1.54621661,2062.3,2061.5,0.001]
[1771007889786,0.56261661,2062.2,2061.5,0.001]
[1771007890159,0.56261661,2062.0,2061.3,0.001]
[1771007890789,0.1024,2061.8,2061.0,0.001]
[1771007890994,1.087,2061.7,2061.0,0.001]
[1771007891198,1.087,2061.7,2061.0,1.68776817]
[1771007891671,2.40183683,2062.0,2061.1,0.47376823]
[1771007892063,1.087,2062.0,2061.1,0.47376823]
[1771007892756,1.31464409,2062.3,2061.1,0.47376823]
[1771007893158,1.31464409,2062.3,2061.2,1.68665392]
[1771007893375,0.1024,2062.4,2061.3,0.47376823]
[1771007893557,1.1894,2062.4,2061.3,0.47376823]
[1771007894665,1.21209943,2062.6,2061.3,0.47376823]
[1771007894870,0.1024,2062.7,2061.3,0.47376823]
[1771007895389,0.1024,2062.7,2061.5,0.47376823]
[1771007895390,1.21206244,2062.6,2061.5,0.47376823]
[1771007895691,1.087,2062.8,2061.5,0.47376823]
[1771007895990,2.29894839,2062.8,2061.5,0.47376823]
[1771007896396,2.29894839,2062.8,2061.6,0.874]
[1771007896562,2.29894839,2062.8,2061.7,0.47376823]
[1771007896762,2.29894839,2062.8,2061.9,0.47376823]
[1771007897183,1.087,2062.8,2061.9,0.47376823]
[1771007897393,0.1024,2063.1,2062.1,0.47376823]
[1771007897394,1.31419809,2063.1,2062.1,0.47376823]
[1771007897598,2.2277694,2063.1,2062.1,0.47376823]
[1771007897797,0.002,2062.5,2062.1,0.47376823]
[1771007897967,1.016,2063.1,2062.1,0.47376823]
[1771007898297,0.002,2062.7,2062.1,0.47376823]
[1771007899399,0.002,2062.7,2062.3,0.47376823]
[1771007901491,0.002,2062.7,2062.5,0.47376823]
[1771007902213,1.016,2063.1,2062.5,0.47376823]
[1771007902716,0.002,2063.6,2062.5,0.47376823]
[1771007902869,1.21347597,2063.6,2062.5,0.47376823]
[1771007903285,1.67369258,2063.6,2062.5,0.47376823]
[1771007903485,1.67369258,2063.6,2062.6,1.21206244]
[1771007903685,0.46021661,2063.5,2062.3,1.21223876]
[1771007904277,1.21347597,2063.6,2062.3,1.21223876]
[1771007904278,1.54621661,2063.4,2062.3,1.21223876]
[1771007904588,1.086,2063.4,2062.4,0.47376823]
[1771007906099,2.29762477,2063.4,2062.6,0.47376823]
[1771007906398,1.086,2063.4,2062.6,0.47376823]
[1771007906603,2.29759679,2063.4,2062.6,0.47376823]
[1771007907213,2.29759679,2063.4,2062.3,0.47376823]
[1771007907513,2.29759679,2063.4,2062.4,1.68593769]
[1771007908111,2.7578134,2063.4,2062.4,1.68593493]
[1771007909115,2.29759679,2063.4,2062.4,1.21217118]
[1771007909291,2.29759679,2063.4,2062.5,0.47376823]
[1771007909911,1.21159679,2063.4,2062.5,0.47376823]
[1771007910111,2.29659679,2063.4,2062.5,0.47376823]
[1771007910311,2.29659679,2063.4,2062.6,1.68583067]
[1771007910522,2.29659679,2063.4,2062.7,0.47376823]
[1771007910719,0.002,2063.2,2062.7,0.47376823]
[1771007912309,0.002,2063.2,2062.9,0.47529081]
[1771007912509,0.002,2063.4,2062.9,0.47529081]
[1771007913024,0.002,2063.4,2062.8,1.21194492]
[1771007913514,0.002,2063.4,2062.7,1.21196026]
[1771007913810,0.002,2063.4,2062.7,1.68725107]
[1771007914215,0.002,2063.4,2062.6,3.3210175]
[1771007914422,0.002,2063.4,2062.6,3.79630831]
[1771007915197,0.002,2063.4,2062.7,0.47529081]
[1771007916400,0.002,2063.4,2062.7,1.68724636]
[1771007916717,0.002,2063.4,2062.7,1.21199496]
[1771007917098,0.002,2063.4,2062.5,1.21209787]
[1771007917519,0.002,2063.4,2062.6,0.48062853]
[1771007918054,0.002,2063.4,2062.5,1.21209787]
[1771007918197,0.47493244,2063.4,2062.5,1.21209787]
[1771007918397,1.21165123,2063.3,2062.5,0.48062853]
[1771007919117,1.21362974,2063.4,2062.5,0.48062853]
[1771007919331,0.002,2063.4,2062.5,0.48062853]
[1771007920494,0.002,2063.4,2062.6,1.69269097]
[1771007920797,0.002,2063.4,2062.7,0.48062853]
[1771007921631,0.002,2063.4,2062.6,1.21206244]
[1771007922504,0.002,2063.4,2062.7,0.48062853]
[1771007922706,0.002,2063.4,2062.6,1.21206244]
[1771007923704,0.002,2063.4,2062.8,0.001]
[1771007923905,0.002,2063.2,2062.8,0.001]
[1771007926538,0.002,2063.2,2062.5,2.44912082]
[1771007926734,0.002,2063.2,2062.5,0.001]
[1771007927435,1.21370996,2063.2,2062.5,0.001]
[1771007928105,2.29270996,2063.2,2062.5,0.001]
[1771007932209,1.21370996,2063.2,2062.5,0.48162853]
[1771007932440,0.002,2063.2,2062.5,0.48162853]
[1771007932740,1.21371704,2063.2,2062.5,0.48162853]
[1771007932934,1.21372595,2063.2,2062.5,0.48162853]
[1771007933240,0.002,2063.2,2062.5,0.48162853]
[1771007934243,0.002,2063.2,2062.6,1.21206244]
[1771007934444,0.002,2063.2,2062.6,1.69269097]
[1771007936346,0.002,2063.2,2062.7,0.001]
[1771007936515,0.002,2063.0,2062.7,0.001]
[1771007936718,0.002,2063.0,2062.7,0.48162853]
[1771007937446,0.002,2063.2,2062.8,0.48062853]
[1771007938656,0.002,2063.2,2063.0,0.48062853]
[1771007940731,0.002,2063.4,2063.2,0.46028077]
[1771007941055,0.002,2063.6,2063.2,0.46028077]
[1771007942752,0.002,2063.6,2063.4,0.46028077]
[1771007942952,1.21106428,2064.3,2063.4,0.46028077]
[1771007942953,1.08,2064.3,2063.4,0.46028077]
[1771007943452,0.873,2064.5,2063.6,0.46028077]
[1771007943952,2.29081428,2064.8,2063.6,0.46028077]
[1771007944338,1.08,2064.8,2063.6,0.46028077]
[1771007944850,1.08,2064.8,2063.8,0.46028077]
[1771007945053,1.21047444,2065.4,2064.2,0.46028077]
[1771007945222,1.21047444,2065.4,2064.4,0.46028077]
[1771007946326,0.47493244,2065.3,2064.1,0.46028077]
[1771007946525,0.47493244,2065.3,2064.3,0.46028077]
[1771007946828,2.28947444,2065.4,2064.5,0.46028077]
[1771007947833,0.47493244,2065.3,2064.3,1.21103188]
[1771007948239,0.47493244,2065.3,2064.1,1.21114759]
[1771007948951,1.2105365,2065.2,2064.1,1.21114759]
[1771007949162,0.47493244,2065.1,2064.1,1.21114759]
[1771007949462,0.47693244,2065.1,2064.1,1.21114759]
[1771007950259,0.47693244,2065.1,2064.0,2.44719534]
[1771007952163,1.68558619,2065.0,2064.0,1.236]
[1771007952333,1.21065375,2065.0,2064.1,0.46028077]
[1771007952536,2.28965375,2065.0,2064.1,0.46028077]
[1771007953245,1.2126067,2065.1,2064.1,0.46028077]
[1771007953428,0.002,2065.1,2064.1,0.46028077]
[1771007954064,0.002,2065.1,2064.3,0.46028077]
[1771007956078,0.002,2065.1,2064.4,1.21100561]
[1771007956283,0.002,2065.1,2064.4,0.46028077]
[1771007956585,0.002,2065.1,2064.1,1.67141952]
[1771007957384,0.002,2065.1,2064.2,0.46028077]
[1771007957560,0.47693244,2065.1,2064.0,2.4471993]
[1771007957774,0.47693244,2065.1,2064.0,2.90748007]
[1771007958076,1.21065375,2065.0,2064.0,2.90748007]
[1771007959259,1.21065375,2065.0,2064.0,1.69628077]
[1771007959476,1.68558619,2065.0,2064.0,1.69628077]
[1771007960043,1.21065375,2065.0,2064.1,0.46028077]
[1771007960240,0.002,2065.1,2064.2,1.21112295]
[1771007960471,0.002,2065.1,2064.1,1.67141811]
[1771007960677,0.47693244,2065.1,2064.1,0.46028077]
[1771007960979,0.47693244,2065.1,2064.0,2.44721006]
[1771007961493,0.47693244,2065.1,2064.0,2.90749083]
[1771007961659,0.002,2064.8,2064.0,2.90749083]
[1771007962200,0.002,2064.8,2064.0,1.69628077]
[1771007962552,0.002,2064.8,2064.0,2.90751805]
[1771007963066,0.002,2064.8,2064.1,0.46028077]
[1771007964269,0.002,2064.8,2064.3,0.46028077]
[1771007966253,0.002,2064.8,2064.4,1.67128638]
[1771007966442,0.002,2064.8,2064.5,0.46028077]
[1771007967361,0.002,2065.1,2064.5,0.46028077]
[1771007968170,0.002,2065.1,2064.6,0.46028077]
[1771007968469,0.002,2065.1,2064.8,0.46028077]
[1771007968676,0.002,2065.3,2064.8,0.46028077]
[1771007970789,0.002,2065.3,2065.0,0.46199124]
[1771007973094,0.002,2065.3,2065.1,1.21059512]
[1771007974163,0.002,2065.3,2065.0,1.67259613]
[1771007974382,0.002,2065.3,2065.0,1.21060489]
[1771007974585,0.002,2065.1,2065.0,1.21060489]
[1771007975300,0.002,2065.1,2065.0,1.67259613]
[1771007975474,0.002,2065.1,2065.0,1.21060489]
[1771007975676,0.002,2065.1,2064.7,1.21078984]
[1771007975907,0.002,2065.1,2064.8,0.46199124]
[1771007977281,0.002,2065.1,2065.0,0.4775966]
[1771007977492,0.002,2065.1,2065.0,1.7205966]
[1771007977978,0.002,2065.1,2064.6,0.4775966]
[1771007978184,0.002,2065.1,2064.7,1.244]
[1771007978623,0.002,2065.1,2064.7,1.7215966]
[1771007978790,0.002,2065.1,2064.8,0.4775966]
[1771007979485,0.002,2065.1,2064.9,1.68830898]
[1771007980186,0.002,2065.1,2065.0,0.4775966]
[1771007981222,0.002,2065.3,2065.0,1.7245966]
[1771007982617,0.002,2065.3,2065.1,1.21059512]
[1771007982804,0.002,2065.3,2065.0,2.93520898]
[1771007982985,0.002,2065.3,2065.0,1.247]
[1771007983497,0.002,2065.3,2065.0,2.45764868]
[1771007983702,0.002,2065.3,2065.0,2.93524528]
[1771007985022,0.002,2065.3,2065.0,1.247]
[1771007985524,0.002,2065.3,2064.7,1.251]
[1771007986121,0.002,2065.3,2064.6,1.251]
[1771007986310,0.002,2065.3,2064.6,1.7285966]
[1771007986511,0.002,2065.3,2064.7,0.4775966]
[1771007986710,0.002,2065.3,2064.9,0.001]
[1771007987092,0.46384795,2065.3,2064.5,1.21093827]
[1771007987420,0.46384795,2065.3,2064.4,2.46197184]
[1771007987609,0.002,2065.1,2064.4,2.46197184]
[1771007987936,0.002,2065.1,2064.6,0.001]
[1771007988088,0.46384795,2065.1,2064.6,0.001]
[1771007989725,1.21065375,2065.0,2064.6,0.001]
[1771007991096,1.21065375,2065.0,2064.2,1.21111513]
[1771007994823,0.46184795,2065.0,2064.2,1.21111513]
[1771007995218,0.46184795,2065.0,2064.2,1.68871173]
[1771007997329,1.21071238,2064.9,2064.2,1.68871173]
[1771007997827,0.46184795,2064.8,2063.9,1.68884186]
[1771007998026,0.46184795,2064.8,2064.0,0.4775966]
[1771007998228,1.21071238,2064.9,2064.0,0.4775966]
[1771007998416,1.53084795,2065.1,2064.0,0.4775966]
[1771007998417,0.002,2065.1,2064.1,0.4775966]
[1771007998725,0.002,2065.1,2064.3,0.4775966]
[1771007999426,0.002,2065.1,2064.5,0.4775966]
[1771008000223,0.002,2065.1,2064.3,1.68862059]
[1771008000434,0.002,2065.1,2064.3,2.93662059]
[1771008000642,0.002,2065.1,2064.4,0.4775966]
[1771008000827,0.002,2065.1,2064.3,2.45905599]
[1771008001035,0.002,2065.1,2064.4,0.49584317]
[1771008001258,0.002,2065.1,2064.4,0.49684317]
[1771008001603,0.002,2064.9,2064.4,1.70780499]
[1771008001907,0.002,2064.9,2064.4,0.001]
[1771008002618,0.002,2064.9,2064.4,1.70784823]
[1771008004033,0.002,2064.9,2064.4,0.001]
[1771008004396,0.002,2064.9,2064.4,1.21199392]
[1771008004597,0.002,2064.9,2064.5,0.49584317]
[1771008005734,0.002,2064.9,2064.6,0.49584317]
[1771008006028,0.002,2065.1,2064.6,0.49584317]
[1771008006029,0.002,2065.1,2064.8,0.49584317]
[1771008006937,0.002,2065.1,2064.7,1.21082966]
[1771008007241,0.002,2065.1,2064.6,1.21085137]
[1771008007426,0.002,2065.1,2064.5,2.95676512]
[1771008007623,0.002,2065.1,2064.5,1.25]
[1771008007931,0.002,2065.1,2064.6,0.49584317]
[1771008008165,0.002,2065.1,2064.7,0.49584317]
[1771008008339,0.002,2065.1,2064.6,1.21084966]
[1771008009025,0.002,2065.1,2064.4,0.001]
[1771008009333,0.46008405,2065.1,2064.3,1.21101729]
[1771008009524,0.46008405,2065.1,2064.2,1.21109275]
[1771008010203,1.6687378,2065.0,2064.2,1.21109275]
[1771008014053,0.45808405,2064.9,2064.1,2.46317726]
[1771008014234,1.52308405,2064.9,2064.1,2.46317726]
[1771008014640,1.065,2064.9,2064.1,2.95902043]
[1771008014841,1.21077101,2064.8,2064.4,0.001]
[1771008015039,1.21277101,2064.8,2064.4,0.001]
[1771008015233,1.21277101,2064.8,2064.1,1.252]
[1771008015841,0.45808405,2064.7,2064.1,0.001]
[1771008016556,0.45808405,2064.7,2063.9,0.873]
[1771008016852,0.45808405,2064.7,2063.8,1.212355]
[1771008016853,1.66897235,2064.6,2063.8,1.212355]
[1771008017148,1.66897235,2064.6,2063.8,0.001]
[1771008017149,0.45808405,2064.5,2063.8,0.001]
[1771008017650,0.45808405,2064.3,2063.8,0.001]
[1771008018759,0.45808405,2064.3,2063.5,0.001]
[1771008018760,0.45808405,2064.1,2063.5,0.001]
[1771008018923,1.21112295,2064.2,2063.5,0.001]
[1771008019119,5.30257586,2064.3,2063.5,0.001]
[1771008019120,4.84449181,2064.3,2063.5,0.001]
[1771008019324,1.066,2064.3,2063.5,0.001]
[1771008019944,1.21105351,2064.4,2063.5,1.248]
[1771008020258,2.08392612,2064.6,2063.5,1.248]
[1771008021043,2.08392612,2064.6,2063.6,1.70731826]
[1771008021360,2.08392612,2064.6,2063.7,0.49584317]
[1771008021849,0.45808405,2064.5,2063.6,1.21147509]
[1771008022231,0.45808405,2064.5,2063.5,1.248]
[1771008022425,0.45808405,2064.5,2063.5,2.45953253]
[1771008022631,0.45808405,2064.5,2063.5,1.248]
[1771008023363,0.45808405,2064.3,2063.5,0.001]
[1771008023567,1.066,2064.2,2063.5,0.001]
[1771008024774,1.21100561,2064.4,2063.6,0.49584317]
[1771008025065,1.066,2064.3,2063.6,0.49584317]
[1771008025433,1.066,2064.4,2063.7,1.21141638]
[1771008025750,1.066,2064.4,2063.7,0.49584317]
[1771008026248,1.066,2064.4,2063.5,0.49684317]
[1771008026562,1.066,2064.4,2063.5,0.001]
[1771008026563,0.45808405,2064.3,2063.5,0.001]
[1771008027566,1.21112295,2064.2,2063.5,0.001]
[1771008027867,1.2111007,2064.3,2063.7,0.001]
[1771008028034,0.002,2064.2,2063.7,0.001]
[1771008028944,0.46008405,2064.2,2063.7,0.001]
[1771008030244,1.21118162,2064.1,2063.7,0.001]
[1771008032361,1.07,2064.0,2063.7,0.001]
[1771008032935,1.071,2064.1,2063.7,0.001]
[1771008034464,0.002,2064.2,2063.7,0.49968212]
[1771008035938,1.21312535,2064.2,2063.7,0.49968212]
[1771008036264,1.21312535,2064.2,2063.7,0.001]
[1771008036569,0.002,2064.2,2063.7,0.001]
[1771008036770,1.074,2064.2,2063.7,0.001]
[1771008038342,1.21118162,2064.1,2063.7,0.001]
[1771008038977,1.68357738,2064.1,2063.5,0.001]
[1771008039152,0.47239576,2064.0,2063.5,0.001]
[1771008039581,0.47239576,2064.0,2063.3,0.001]
[1771008040070,0.47239576,2064.0,2062.8,1.239]
[1771008040071,0.47239576,2064.0,2062.9,0.45025219]
[1771008040568,1.21129899,2063.9,2063.0,0.45025219]
[1771008040748,1.076,2063.8,2063.0,0.45025219]
[1771008040945,1.076,2063.8,2062.8,6.0867765]
[1771008040946,1.54839576,2063.8,2062.8,1.68925219]
[1771008041151,0.47239576,2063.7,2062.8,0.45025219]
[1771008041556,0.47239576,2063.7,2062.7,0.001]
[1771008041758,0.47239576,2063.7,2062.7,0.45125219]
[1771008041945,1.076,2063.8,2062.8,0.45025219]
[1771008042649,1.21141638,2063.7,2062.9,0.45025219]
[1771008042977,2.28740529,2063.8,2062.9,0.45025219]
[1771008044245,2.75980105,2063.8,2062.9,0.45025219]
[1771008044441,0.47239576,2063.7,2062.7,1.6632138]
[1771008044649,1.68387085,2063.6,2062.7,0.45125219]
[1771008044842,1.68387085,2063.6,2062.7,1.21299814]
[1771008045064,1.21147509,2063.6,2062.8,0.45025219]
[1771008045445,0.47239576,2063.5,2062.7,0.001]
[1771008045755,1.076,2063.4,2062.7,0.001]
[1771008046155,1.54839576,2063.4,2062.7,0.001]
[1771008046679,1.21165123,2063.3,2062.7,0.001]
[1771008047393,0.47239576,2063.2,2062.7,0.001]
[1771008047550,1.21165123,2063.3,2062.5,0.45125219]
[1771008048371,1.21165123,2063.3,2062.5,1.66336978]
[1771008048879,1.21165123,2063.3,2062.5,0.45125219]
[1771008049472,0.47239576,2063.2,2062.5,0.001]
[1771008049975,1.21165123,2063.3,2062.6,0.45025219]
[1771008050175,2.28965123,2063.3,2062.6,0.45025219]
[1771008050477,1.078,2063.3,2062.6,0.45025219]
[1771008051287,1.21170996,2063.2,2062.5,0.001]
[1771008051583,1.21170996,2063.2,2062.5,0.45125219]
[1771008053249,1.21170996,2063.2,2062.7,0.001]
[1771008055354,1.68410572,2063.2,2062.5,0.001]
[1771008056994,0.47239576,2063.1,2062.5,0.001]
[1771008058068,1.21182743,2063.0,2062.5,0.001]